bitfinex/quotes_BTCUSD_20241004
["timestamp","ask_amount","ask_price","bid_price","bid_amount"]
[1728045522831,0.40547519,61660.0,61656.0,0.002]
[1728045523281,0.24329519,61660.0,61653.0,0.002]
[1728045523542,0.50154071,61661.0,61653.0,0.002]
[1728045523783,0.16217,61664.0,61654.0,0.002]
[1728045524000,0.24329519,61661.0,61654.0,0.002]
[1728045524437,0.24329519,61661.0,61658.0,0.002]
[1728045524696,0.03942827,61660.0,61658.0,0.002]
[1728045524913,0.02542827,61660.0,61658.0,0.002]
[1728045525336,0.02542827,61660.0,61646.0,0.59450136]
[1728045525337,0.18760827,61660.0,61654.0,0.002]
[1728045525549,0.02542827,61660.0,61654.0,0.002]
[1728045525764,0.02542827,61660.0,61658.0,0.002]
[1728045526043,0.18760827,61660.0,61658.0,0.002]
[1728045526254,0.18760827,61660.0,61648.0,0.002]
[1728045526255,0.324365,61659.0,61648.0,0.002]
[1728045526476,0.162193,61655.0,61648.0,0.002]
[1728045526698,0.32438,61656.0,61648.0,0.002]
[1728045526699,0.162201,61652.0,61648.0,0.002]
[1728045526918,0.162201,61652.0,61630.0,0.80473982]
[1728045526919,0.162221,61644.0,61638.0,0.002]
[1728045527138,0.24168671,61651.0,61640.0,0.002]
[1728045527375,0.24168671,61651.0,61636.0,0.002]
[1728045527376,0.162221,61644.0,61636.0,0.002]
[1728045527803,0.324428,61647.0,61636.0,0.002]
[1728045528019,0.16318671,61647.0,61636.0,0.002]
[1728045528277,0.002,61644.0,61636.0,0.002]
[1728045528475,0.24329519,61654.0,61641.0,0.324454]
[1728045528700,0.24329519,61647.0,61641.0,0.324454]
[1728045528940,0.009,61644.0,61643.0,0.16386]
[1728045529423,0.009,61644.0,61643.0,0.001636]
[1728045529638,0.009,61644.0,61643.0,0.003636]
[1728045529639,0.016,61644.0,61643.0,0.003636]
[1728045530103,0.007,61644.0,61643.0,0.003636]
[1728045531114,0.007,61644.0,61643.0,0.86133307]
[1728045531272,0.005,61644.0,61643.0,0.86133307]
[1728045531499,0.24329519,61653.0,61646.0,0.002]
[1728045531728,0.24329519,61653.0,61651.0,0.162202]
[1728045532402,0.24329519,61653.0,61644.0,0.424439]
[1728045532403,0.000818,61659.0,61658.0,0.002]
[1728045532645,0.000818,61659.0,61658.0,0.69647036]
[1728045532646,0.24411319,61659.0,61658.0,0.69647036]
[1728045532871,0.000818,61659.0,61658.0,0.69647036]
[1728045533084,0.000818,61659.0,61658.0,0.85965707]
[1728045533321,0.000818,61659.0,61658.0,0.8773847]
[1728045534290,0.003818,61659.0,61658.0,0.002]
[1728045534546,0.000818,61659.0,61658.0,0.002]
[1728045534770,0.001818,61659.0,61658.0,0.264184]
[1728045535031,0.001818,61659.0,61658.0,0.42737071]
[1728045535288,0.001818,61659.0,61658.0,0.102]
[1728045535289,0.000818,61659.0,61658.0,0.102]
[1728045535515,0.000818,61659.0,61658.0,0.002]
[1728045536481,0.163,61659.0,61658.0,0.002]
[1728045536697,0.163,61659.0,61653.0,0.01972221]
[1728045536698,0.162187,61657.0,61656.0,0.002]
[1728045538145,0.163187,61657.0,61656.0,0.002]
[1728045538356,0.164187,61657.0,61656.0,0.002]
[1728045538809,0.002,61657.0,61656.0,0.002]
[1728045539670,0.164187,61657.0,61656.0,0.002]
[1728045540155,0.002,61657.0,61656.0,0.16419]
[1728045540362,0.002,61657.0,61656.0,0.21212746]
[1728045540815,0.002,61657.0,61656.0,0.52325163]
[1728045541025,0.002,61657.0,61656.0,0.42737671]
[1728045541731,0.002,61657.0,61656.0,0.70968278]
[1728045542399,0.002,61657.0,61656.0,0.92443273]
[1728045543112,0.40131,61689.0,61666.0,0.54446907]
[1728045543113,0.24329519,61669.0,61666.0,0.54446907]
[1728045543320,0.24329519,61669.0,61666.0,1.26320876]
[1728045544007,0.24329519,61678.0,61666.0,1.26320876]
[1728045544211,0.24329519,61678.0,61666.0,1.26520876]
[1728045544652,0.001818,61667.0,61666.0,1.26520876]
[1728045545098,0.002818,61667.0,61666.0,1.26520876]
[1728045545788,0.002818,61667.0,61666.0,1.4138934]
[1728045546008,0.002818,61667.0,61666.0,0.44508686]
[1728045546224,0.002818,61667.0,61666.0,0.85834042]
[1728045546960,0.000818,61667.0,61666.0,0.85834042]
[1728045547186,0.001818,61667.0,61666.0,0.86334042]
[1728045547420,0.002818,61667.0,61666.0,0.88600114]
[1728045547667,0.000818,61667.0,61666.0,0.87599963]
[1728045547898,0.002818,61667.0,61666.0,0.87234042]
[1728045548804,0.002818,61667.0,61666.0,1.08645737]
[1728045549275,0.002818,61667.0,61666.0,0.44134971]
[1728045549503,0.002818,61667.0,61666.0,0.278163]
[1728045549957,0.002818,61667.0,61666.0,0.178163]
[1728045550187,0.002818,61667.0,61666.0,0.014]
[1728045550447,0.002818,61667.0,61666.0,0.08853204]
[1728045550653,0.002818,61667.0,61666.0,0.25069504]
[1728045551124,0.002818,61667.0,61666.0,0.178163]
[1728045551353,0.000818,61667.0,61666.0,0.26086025]
[1728045551566,0.007818,61667.0,61666.0,0.26086025]
[1728045551776,0.000818,61667.0,61666.0,0.26086025]
[1728045551980,0.006818,61667.0,61666.0,0.26186025]
[1728045552191,0.011818,61667.0,61666.0,0.09969725]
[1728045552407,0.006818,61667.0,61666.0,0.003]
[1728045553526,0.006818,61667.0,61666.0,0.001]
[1728045553527,0.249179,61667.0,61666.0,0.001]
[1728045553750,0.249179,61667.0,61663.0,0.002]
[1728045553751,0.162169,61664.0,61663.0,0.002]
[1728045553954,0.162169,61664.0,61653.0,0.04836163]
[1728045553955,0.162177,61661.0,61660.0,0.002]
[1728045554454,0.324328,61666.0,61663.0,0.002]
[1728045554667,0.324328,61666.0,61653.0,0.162196]
[1728045554668,0.000818,61667.0,61666.0,0.162163]
[1728045554917,0.000818,61667.0,61666.0,0.101]
[1728045554918,0.012818,61667.0,61666.0,0.101]
[1728045555154,0.012818,61667.0,61666.0,0.265163]
[1728045555155,0.005818,61667.0,61666.0,0.265163]
[1728045555380,0.000818,61667.0,61666.0,0.69515371]
[1728045555613,0.000818,61667.0,61666.0,0.85834042]
[1728045556909,0.000818,61667.0,61666.0,0.264163]
[1728045557159,0.000818,61667.0,61663.0,0.1]
[1728045557352,0.167979,61667.0,61666.0,0.001]
[1728045557837,0.33716571,61667.0,61666.0,0.001]
[1728045558074,0.42036571,61667.0,61666.0,0.001]
[1728045558284,0.27620471,61667.0,61657.0,0.164186]
[1728045558524,0.095018,61667.0,61666.0,0.001]
[1728045558775,0.257179,61667.0,61666.0,0.001]
[1728045558982,0.095018,61667.0,61666.0,0.001]
[1728045559192,0.095018,61667.0,61666.0,0.163163]
[1728045559403,0.095018,61667.0,61666.0,0.001]
[1728045559826,0.257179,61667.0,61666.0,0.001]
[1728045560039,0.162163,61666.0,61665.0,0.002]
[1728045560516,0.095018,61667.0,61663.0,0.002]
[1728045560731,0.095018,61667.0,61666.0,0.002]
[1728045560967,0.246179,61667.0,61666.0,0.002]
[1728045561186,0.162171,61663.0,61662.0,0.002]
[1728045561661,0.166165,61666.0,61662.0,0.002]
[1728045561919,0.090018,61667.0,61662.0,0.326348]
[1728045562140,0.084018,61667.0,61666.0,0.162163]
[1728045562353,0.000818,61667.0,61666.0,0.162163]
[1728045562806,0.000818,61667.0,61666.0,0.164163]
[1728045563283,0.005818,61667.0,61666.0,0.003]
[1728045563961,0.005818,61667.0,61666.0,0.165163]
[1728045564176,0.005818,61667.0,61666.0,0.59615371]
[1728045564177,0.011818,61667.0,61666.0,0.59615371]
[1728045564469,0.005818,61667.0,61666.0,0.85934042]
[1728045564701,0.011818,61667.0,61666.0,0.85934042]
[1728045565370,0.005818,61667.0,61666.0,0.85934042]
[1728045565860,0.006818,61667.0,61666.0,0.71057321]
[1728045566300,0.006818,61667.0,61666.0,0.265163]
[1728045566558,0.006818,61667.0,61666.0,0.001]
[1728045566559,0.168979,61667.0,61666.0,0.001]
[1728045566764,0.081418,61667.0,61656.0,0.162189]
[1728045566998,0.162177,61661.0,61656.0,0.162189]
[1728045567225,0.324353,61662.0,61656.0,0.162189]
[1728045567445,0.324365,61659.0,61655.0,0.002]
[1728045567666,0.24329519,61661.0,61651.0,0.001636]
[1728045567954,0.324376,61657.0,61651.0,0.001636]
[1728045568184,0.023,61659.0,61651.0,0.001636]
[1728045568185,0.1622,61652.0,61651.0,0.001636]
[1728045568428,0.40838671,61652.0,61651.0,0.001636]
[1728045568635,0.43138671,61652.0,61651.0,0.001636]
[1728045569337,0.71361021,61652.0,61651.0,0.001636]
[1728045569574,0.71361021,61652.0,61643.0,0.001636]
[1728045569575,0.185221,61644.0,61643.0,0.001636]
[1728045569793,0.78021973,61644.0,61643.0,0.001636]
[1728045570482,0.42390771,61644.0,61643.0,0.001636]
[1728045570698,0.44934521,61644.0,61643.0,0.001636]
[1728045570912,0.44934521,61644.0,61643.0,0.002636]
[1728045571130,0.46334521,61644.0,61643.0,0.002636]
[1728045571347,0.48878225,61644.0,61643.0,0.002636]
[1728045571774,0.50278225,61644.0,61643.0,0.002636]
[1728045572477,0.47978225,61644.0,61643.0,0.002636]
[1728045573147,0.15437454,61644.0,61643.0,0.002636]
[1728045573384,0.05343704,61644.0,61643.0,0.26486]
[1728045573621,0.028,61644.0,61643.0,0.26486]
[1728045573834,0.028,61644.0,61643.0,0.42804671]
[1728045574300,0.028,61644.0,61643.0,0.42704671]
[1728045574301,0.014,61644.0,61643.0,0.42704671]
[1728045574539,0.028,61644.0,61643.0,0.42804671]
[1728045575016,0.24329519,61654.0,61644.0,0.1]
[1728045575250,0.24329519,61654.0,61653.0,0.162198]
[1728045576004,0.02542832,61660.0,61658.0,0.162182]
[1728045576472,0.02542832,61660.0,61657.0,0.324374]
[1728045576725,0.02542832,61660.0,61650.0,0.324407]
[1728045576976,0.18760932,61660.0,61657.0,0.002]
[1728045577215,0.324364,61659.0,61653.0,0.002]
[1728045577438,0.324377,61657.0,61653.0,0.002]
[1728045577940,0.486565,61657.0,61653.0,0.002]
[1728045578185,0.486555,61658.0,61657.0,0.003]
[1728045578435,0.486555,61658.0,61657.0,0.001]
[1728045579717,0.162184,61659.0,61653.0,0.162198]
[1728045579947,0.168188,61657.0,61653.0,0.001]
[1728045580418,0.168188,61657.0,61652.0,0.1622]
[1728045580419,0.162188,61657.0,61652.0,0.1622]
[1728045580652,0.02542597,61658.0,61657.0,0.001]
[1728045580653,0.19461197,61658.0,61657.0,0.001]
[1728045580908,0.19461197,61658.0,61657.0,0.163187]
[1728045580909,0.04142597,61658.0,61657.0,0.163187]
[1728045581161,0.079218,61667.0,61656.0,0.43181202]
[1728045581397,0.079218,61667.0,61666.0,0.262163]
[1728045581398,0.000818,61667.0,61666.0,0.262163]
[1728045582714,0.02623847,61667.0,61666.0,0.264163]
[1728045582943,0.02623847,61667.0,61666.0,0.1]
[1728045583155,0.02623847,61667.0,61660.0,0.002]
[1728045583396,0.162173,61663.0,61660.0,0.002]
[1728045583614,0.16318671,61666.0,61660.0,0.002]
[1728045583615,0.16217,61664.0,61660.0,0.002]
[1728045583862,0.02623847,61667.0,61660.0,0.002]
[1728045584100,0.02623847,61667.0,61663.0,0.16217]
[1728045584338,0.02623847,61667.0,61664.0,0.162168]
[1728045584339,0.27453366,61667.0,61664.0,0.162168]
[1728045584573,0.02623847,61667.0,61666.0,0.165163]
[1728045584801,0.02623847,61667.0,61666.0,0.167163]
[1728045584981,0.02623847,61667.0,61666.0,0.005]
[1728045585484,0.03223847,61667.0,61666.0,0.005]
[1728045585911,0.02623847,61667.0,61666.0,0.164163]
[1728045586133,0.03623847,61667.0,61666.0,0.002]
[1728045586357,0.03623847,61667.0,61666.0,0.164163]
[1728045586591,0.03223847,61667.0,61666.0,0.164163]
[1728045587031,0.03623847,61667.0,61666.0,0.164163]
[1728045587531,0.03623847,61667.0,61666.0,0.264163]
[1728045589707,0.03623847,61667.0,61666.0,0.102]
[1728045591041,0.03623847,61667.0,61666.0,0.264163]
[1728045591734,0.19839947,61667.0,61666.0,0.1]
[1728045591968,0.162177,61661.0,61660.0,0.002]
[1728045592686,0.162179,61660.0,61659.0,0.002]
[1728045592902,0.324355,61661.0,61656.0,0.002]
[1728045592903,0.162187,61657.0,61656.0,0.002]
[1728045593111,0.162187,61657.0,61650.0,0.162205]
[1728045593112,0.162184,61659.0,61657.0,0.002]
[1728045593322,0.324349,61662.0,61657.0,0.002]
[1728045593553,0.56761719,61668.0,61657.0,0.002]
[1728045593779,0.02542615,61659.0,61658.0,0.162184]
[1728045594938,0.02542615,61659.0,61658.0,0.262184]
[1728045595377,0.02842615,61659.0,61658.0,0.262184]
[1728045595591,0.02542615,61659.0,61658.0,0.262184]
[1728045597120,0.02542615,61659.0,61658.0,0.264184]
[1728045597869,0.02542615,61659.0,61658.0,0.267184]
[1728045598462,0.02542615,61659.0,61658.0,0.266184]
[1728045598922,0.02542615,61659.0,61658.0,0.267184]
[1728045599537,0.02542615,61659.0,61658.0,0.266184]
[1728045599749,0.02542615,61659.0,61658.0,0.269184]
[1728045599991,0.02542615,61659.0,61658.0,0.007]
[1728045600224,0.02542615,61659.0,61658.0,0.269184]
[1728045600707,0.02542615,61659.0,61658.0,0.43237071]
[1728045600968,0.02542615,61659.0,61658.0,0.71968582]
[1728045601403,0.02542615,61659.0,61658.0,0.72168582]
[1728045601674,0.02542615,61659.0,61658.0,0.81834509]
[1728045601915,0.02542615,61659.0,61658.0,0.81634509]
[1728045602146,0.02542615,61659.0,61658.0,0.7198091]
[1728045602388,0.02642615,61659.0,61658.0,0.7308091]
[1728045602622,0.02642615,61659.0,61658.0,0.7258091]
[1728045602808,0.02642615,61659.0,61658.0,0.7148091]
[1728045602809,0.02542615,61659.0,61658.0,0.7148091]
[1728045603137,0.02542615,61659.0,61658.0,0.43837071]
[1728045603343,0.02642615,61659.0,61658.0,0.43837071]
[1728045603576,0.02742615,61659.0,61658.0,0.44237071]
[1728045603800,0.02542615,61659.0,61658.0,0.42737071]
[1728045604086,0.02742615,61659.0,61658.0,0.44237071]
[1728045604317,0.02642615,61659.0,61658.0,0.43837071]
[1728045604546,0.02642615,61659.0,61658.0,0.013]
[1728045604757,0.18960815,61659.0,61658.0,0.016]
[1728045605024,0.18860815,61659.0,61658.0,0.011]
[1728045605226,0.65610997,61659.0,61658.0,0.002]
[1728045605467,0.89940516,61659.0,61658.0,0.002]
[1728045605703,0.46751511,61652.0,61651.0,0.001638]
[1728045605953,0.70800182,61652.0,61651.0,0.001638]
[1728045606453,0.73343507,61652.0,61651.0,0.001638]
[1728045607174,0.162221,61644.0,61630.0,0.24529519]
[1728045607449,0.63072282,61644.0,61630.0,0.24529519]
[1728045607652,0.63072282,61644.0,61630.0,0.24329519]
[1728045607653,0.162256,61631.0,61630.0,0.24329519]
[1728045608222,0.28231511,61635.0,61622.0,0.002]
[1728045608426,0.324512,61631.0,61622.0,0.002]
[1728045608641,0.162257,61631.0,61625.0,0.162271]
[1728045608854,0.324508,61632.0,61624.0,0.162273]
[1728045609087,0.162259,61630.0,61625.0,0.16227]
[1728045609298,0.18769763,61630.0,61625.0,0.16227]
[1728045609513,0.18769763,61630.0,61626.0,0.162269]
[1728045609728,0.02543863,61630.0,61626.0,0.324538]
[1728045609945,0.02543863,61630.0,61629.0,0.162261]
[1728045610185,0.18769863,61630.0,61625.0,0.16227]
[1728045610489,0.02543863,61630.0,61627.0,0.002]
[1728045610585,0.162261,61629.0,61627.0,0.002]
[1728045610805,0.02543863,61630.0,61625.0,0.16427]
[1728045611021,0.02543863,61630.0,61625.0,0.002]
[1728045611022,0.03343863,61630.0,61625.0,0.002]
[1728045611239,0.03343863,61630.0,61627.0,0.162265]
[1728045611240,0.02543863,61630.0,61627.0,0.162265]
[1728045611447,0.02543863,61630.0,61625.0,0.16427]
[1728045611686,0.162261,61629.0,61625.0,0.16427]
[1728045611930,0.03343863,61630.0,61625.0,0.002]
[1728045612154,0.04043863,61630.0,61626.0,0.324537]
[1728045612399,0.04043863,61630.0,61629.0,0.162261]
[1728045612870,0.03343863,61630.0,61629.0,0.162261]
[1728045613345,0.03343863,61630.0,61628.0,0.324527]
[1728045613346,0.24329519,61637.0,61628.0,0.324527]
[1728045613590,0.24329519,61637.0,61636.0,0.164242]
[1728045614097,0.40553619,61637.0,61633.0,0.002]
[1728045614324,0.324446,61644.0,61633.0,0.002]
[1728045614325,0.162229,61641.0,61636.0,0.162242]
[1728045614571,0.162237,61638.0,61633.0,0.002]
[1728045614815,0.324454,61642.0,61631.0,0.002]
[1728045614816,0.02543545,61640.0,61631.0,0.002]
[1728045615067,0.006,61637.0,61631.0,0.002]
[1728045615301,0.162248,61634.0,61631.0,0.002]
[1728045615536,0.006,61637.0,61631.0,0.002]
[1728045615767,0.006,61637.0,61633.0,0.16225]
[1728045616006,0.17624,61637.0,61636.0,0.001]
[1728045616437,0.006,61637.0,61633.0,0.002]
[1728045616943,0.017,61637.0,61636.0,0.162242]
[1728045617197,0.006,61637.0,61636.0,0.162242]
[1728045617431,0.02543545,61640.0,61639.0,0.162234]
[1728045618398,0.02543545,61640.0,61635.0,0.162243]
[1728045618851,0.02543545,61640.0,61633.0,0.102]
[1728045618852,0.008,61637.0,61633.0,0.102]
[1728045619094,0.008,61637.0,61636.0,0.54555711]
[1728045619095,0.015,61637.0,61636.0,0.54555711]
[1728045619308,0.015,61637.0,61636.0,0.70874382]
[1728045619760,0.008,61637.0,61636.0,0.70774382]
[1728045619989,0.0330936,61640.0,61639.0,0.262234]
[1728045620229,0.02615971,61640.0,61639.0,0.42542071]
[1728045620469,0.007,61640.0,61639.0,0.42542071]
[1728045620720,0.24329519,61646.0,61639.0,0.26518671]
[1728045620962,0.24329519,61646.0,61645.0,0.264219]
[1728045621188,0.24329519,61646.0,61645.0,0.102]
[1728045621441,0.324378,61657.0,61645.0,0.002]
[1728045621442,0.60669311,61657.0,61645.0,0.002]
[1728045621672,0.162216,61646.0,61645.0,0.002]
[1728045621891,0.324442,61645.0,61642.0,0.002]
[1728045622108,0.324442,61645.0,61635.0,0.1]
[1728045622322,0.60672511,61651.0,61639.0,0.002]
[1728045622323,0.28231511,61651.0,61639.0,0.002]
[1728045622554,0.163232,61640.0,61639.0,0.012]
[1728045623015,0.486678,61643.0,61642.0,0.002]
[1728045623496,0.162234,61639.0,61638.0,0.002]
[1728045623718,0.162237,61638.0,61637.0,0.002]
[1728045623935,0.162232,61640.0,61637.0,0.002]
[1728045624150,0.162232,61640.0,61639.0,0.003]
[1728045624645,0.324443,61645.0,61644.0,0.002]
[1728045624883,0.486662,61645.0,61644.0,0.002]
[1728045625101,0.324444,61644.0,61639.0,0.003]
[1728045625368,0.162232,61640.0,61639.0,0.003]
[1728045625617,0.244432,61640.0,61639.0,0.003]
[1728045625884,0.162239,61638.0,61635.0,0.002]
[1728045626104,0.163237,61638.0,61637.0,0.008]
[1728045626326,0.001,61638.0,61637.0,0.008]
[1728045626575,0.0822,61640.0,61637.0,0.002]
[1728045627035,0.0852,61640.0,61639.0,0.006]
[1728045627513,0.0852,61640.0,61634.0,0.324495]
[1728045627514,0.24329519,61647.0,61645.0,0.002]
[1728045627980,0.162216,61646.0,61645.0,0.002]
[1728045628497,0.324439,61645.0,61642.0,0.002]
[1728045628743,0.324439,61645.0,61639.0,0.002]
[1728045628744,0.24329519,61644.0,61639.0,0.002]
[1728045628984,0.162232,61640.0,61639.0,0.002]
[1728045629245,0.324445,61644.0,61639.0,0.002]
[1728045629466,0.0794,61651.0,61639.0,0.164234]
[1728045629467,0.003,61640.0,61639.0,0.164234]
[1728045629689,0.003,61640.0,61639.0,0.002]
[1728045629903,0.003,61640.0,61632.0,0.324502]
[1728045629904,0.162228,61642.0,61641.0,0.002]
[1728045630131,0.000819,61643.0,61641.0,0.002]
[1728045630400,0.000819,61643.0,61642.0,0.162227]
[1728045630897,0.000819,61643.0,61642.0,0.164227]
[1728045631959,0.003819,61643.0,61642.0,0.42741371]
[1728045632201,0.000819,61643.0,61642.0,0.44257903]
[1728045632462,0.000819,61643.0,61642.0,0.27939232]
[1728045632463,0.002819,61643.0,61642.0,0.27939232]
[1728045632714,0.000819,61643.0,61642.0,0.27939232]
[1728045632975,0.163043,61643.0,61642.0,0.01716532]
[1728045633267,0.165043,61643.0,61642.0,0.01516532]
[1728045633562,0.002819,61643.0,61642.0,0.01516532]
[1728045633741,0.000819,61643.0,61642.0,0.17739232]
[1728045633977,0.002819,61643.0,61642.0,0.17739232]
[1728045634660,0.004819,61643.0,61642.0,0.17739232]
[1728045634905,0.002819,61643.0,61642.0,0.17739232]
[1728045635157,0.004819,61643.0,61642.0,0.01516532]
[1728045635400,0.002819,61643.0,61642.0,0.17739232]
[1728045635626,0.002819,61643.0,61642.0,0.01516532]
[1728045635841,0.004819,61643.0,61642.0,0.01516532]
[1728045636098,0.004819,61643.0,61642.0,0.17739232]
[1728045636591,0.004819,61643.0,61642.0,0.27739232]
[1728045637093,0.004819,61643.0,61642.0,0.27939232]
[1728045637357,0.002819,61643.0,61642.0,0.44257903]
[1728045638059,0.002819,61643.0,61642.0,0.27939232]
[1728045638283,0.000819,61643.0,61642.0,0.27939232]
[1728045638506,0.001819,61643.0,61642.0,0.28539232]
[1728045638781,0.002819,61643.0,61642.0,0.27939232]
[1728045639008,0.003819,61643.0,61642.0,0.28939232]
[1728045639241,0.001819,61643.0,61642.0,0.28939232]
[1728045639460,0.002819,61643.0,61642.0,0.28739232]
[1728045639674,0.003819,61643.0,61642.0,0.29539232]
[1728045640372,0.003819,61643.0,61642.0,0.03116532]
[1728045640629,0.003819,61643.0,61642.0,0.19539232]
[1728045643260,0.003819,61643.0,61642.0,0.03116532]
[1728045643505,0.166043,61643.0,61642.0,0.03116532]
[1728045643750,0.003819,61643.0,61642.0,0.03116532]
[1728045643995,0.166043,61643.0,61642.0,0.018]
[1728045644256,0.241843,61643.0,61642.0,0.0311565]
[1728045644518,0.26527577,61643.0,61642.0,0.0231565]
[1728045644764,0.26527577,61643.0,61642.0,0.011]
[1728045645221,0.10205177,61643.0,61640.0,0.001638]
[1728045645453,0.26727577,61643.0,61642.0,0.005]
[1728045645680,0.26427577,61643.0,61642.0,0.005]
[1728045645906,0.26427577,61643.0,61642.0,0.01442669]
[1728045646166,0.27027577,61643.0,61642.0,0.01442669]
[1728045646386,0.26727577,61643.0,61642.0,0.01242669]
[1728045646603,0.26727577,61643.0,61640.0,0.003638]
[1728045646604,0.162229,61641.0,61640.0,0.003638]
[1728045646843,0.26727677,61643.0,61640.0,0.003638]
[1728045647506,0.26727677,61643.0,61641.0,0.01517536]
[1728045647758,0.162227,61642.0,61641.0,0.01517536]
[1728045648235,0.079619,61643.0,61641.0,0.324459]
[1728045648487,0.000819,61643.0,61642.0,0.162227]
[1728045648735,0.003819,61643.0,61642.0,0.17665814]
[1728045648988,0.000819,61643.0,61642.0,0.17665814]
[1728045649471,0.003819,61643.0,61642.0,0.17665814]
[1728045649952,0.000819,61643.0,61642.0,0.17665814]
[1728045650176,0.003819,61643.0,61642.0,0.01443114]
[1728045650417,0.003819,61643.0,61642.0,0.01243114]
[1728045650660,0.166043,61643.0,61642.0,0.01243114]
[1728045651141,0.166043,61643.0,61640.0,0.001638]
[1728045651142,0.162229,61641.0,61640.0,0.001638]
[1728045652346,0.34841571,61641.0,61640.0,0.001638]
[1728045652618,0.52691571,61641.0,61640.0,0.001638]
[1728045652847,0.46758411,61626.0,61620.0,0.24329519]
[1728045653122,0.46758411,61626.0,61612.0,0.24329519]
[1728045653123,0.185279,61622.0,61621.0,0.24329519]
[1728045653346,0.185279,61622.0,61612.0,0.24329519]
[1728045653347,0.162303,61613.0,61612.0,0.24329519]
[1728045653605,0.63080482,61613.0,61612.0,0.24329519]
[1728045653858,0.162335,61601.0,61600.0,0.002]
[1728045654117,0.486984,61604.0,61603.0,0.002]
[1728045654377,0.239027,61604.0,61603.0,0.002]
[1728045654644,0.239027,61604.0,61597.0,0.001636]
[1728045654645,0.162342,61598.0,61597.0,0.001636]
[1728045654943,0.63084382,61598.0,61597.0,0.001636]
[1728045655232,0.16235,61595.0,61589.0,0.001636]
[1728045655471,0.34853671,61595.0,61589.0,0.001636]
[1728045656142,0.46767911,61590.0,61589.0,0.001636]
[1728045656389,0.63086582,61590.0,61589.0,0.001636]
[1728045656827,0.65632427,61590.0,61589.0,0.001636]
[1728045657044,0.46769711,61583.0,61582.0,0.000819]
[1728045657279,0.63088382,61583.0,61582.0,0.000819]
[1728045657513,0.63088382,61583.0,61568.0,0.001638]
[1728045657514,0.162416,61570.0,61568.0,0.001638]
[1728045657777,0.47641223,61570.0,61568.0,0.001638]
[1728045658004,0.47641223,61570.0,61557.0,0.24329519]
[1728045658005,0.185432,61564.0,61557.0,0.24329519]
[1728045658228,0.40082823,61564.0,61557.0,0.24329519]
[1728045658485,0.40082823,61564.0,61550.0,0.24329519]
[1728045658983,0.16318671,61564.0,61550.0,0.24329519]
[1728045659252,0.32561871,61564.0,61555.0,0.162456]
[1728045659482,0.41482823,61564.0,61563.0,0.002638]
[1728045659705,0.42882823,61564.0,61563.0,0.003638]
[1728045660142,0.42882823,61564.0,61563.0,0.002638]
[1728045660143,0.44029863,61564.0,61563.0,0.002638]
[1728045660629,0.38808911,61564.0,61563.0,0.002638]
[1728045660853,0.37408911,61564.0,61563.0,0.001638]
[1728045661309,0.37408911,61564.0,61563.0,0.003638]
[1728045661310,0.40208911,61564.0,61563.0,0.003638]
[1728045661646,0.16248,61546.0,61545.0,0.24329519]
[1728045661833,0.32566671,61546.0,61545.0,0.24329519]
[1728045662049,0.324966,61545.0,61540.0,0.002]
[1728045662268,0.16318671,61545.0,61541.0,0.0022]
[1728045662491,0.18866088,61545.0,61541.0,0.0022]
[1728045662715,0.16318671,61544.0,61541.0,0.0022]
[1728045663205,0.32567371,61544.0,61542.0,0.004817]
[1728045663469,0.02547417,61545.0,61544.0,0.162485]
[1728045663930,0.24329519,61555.0,61545.0,0.003]
[1728045664152,0.4064819,61555.0,61550.0,0.162467]
[1728045664408,0.02546916,61551.0,61550.0,0.162469]
[1728045665613,0.02946916,61551.0,61550.0,0.164469]
[1728045666084,0.40573219,61563.0,61561.0,0.002]
[1728045666363,0.40573219,61563.0,61550.0,0.1]
[1728045666364,0.162453,61556.0,61555.0,0.002]
[1728045666614,0.324914,61555.0,61551.0,0.002]
[1728045666829,0.00164,61563.0,61551.0,0.002]
[1728045667051,0.02546847,61556.0,61555.0,0.162456]
[1728045667513,0.02546847,61556.0,61552.0,0.324925]
[1728045667771,0.16246,61554.0,61551.0,0.002]
[1728045668045,0.162462,61553.0,61551.0,0.002]
[1728045668297,0.16246,61554.0,61551.0,0.002]
[1728045668514,0.324907,61556.0,61555.0,0.001]
[1728045668515,0.170455,61556.0,61555.0,0.001]
[1728045668994,0.324907,61556.0,61551.0,0.003]
[1728045669248,0.005,61553.0,61551.0,0.003]
[1728045669468,0.005,61553.0,61551.0,0.002]
[1728045669685,0.005,61553.0,61552.0,0.162464]
[1728045670384,0.24329519,61562.0,61561.0,0.16244]
[1728045670643,0.24329519,61562.0,61551.0,0.002]
[1728045670644,0.24329519,61562.0,61556.0,0.324904]
[1728045670873,0.24329519,61562.0,61555.0,0.324911]
[1728045670874,0.162441,61561.0,61555.0,0.324911]
[1728045671097,0.008,61556.0,61555.0,0.001]
[1728045671321,0.008,61556.0,61555.0,0.163456]
[1728045671602,0.26876159,61561.0,61551.0,0.002]
[1728045671864,0.162464,61552.0,61551.0,0.002]
[1728045672087,0.16246,61554.0,61551.0,0.002]
[1728045672333,0.16246,61554.0,61545.0,0.00082]
[1728045672334,0.023,61552.0,61545.0,0.00082]
[1728045672576,0.16248,61546.0,61545.0,0.00082]
[1728045672837,0.27093013,61546.0,61545.0,0.00082]
[1728045673563,0.27093013,61546.0,61541.0,0.0002]
[1728045673564,0.285488,61543.0,61541.0,0.0002]
[1728045673821,0.1,61538.0,61521.0,0.0002]
[1728045674087,0.55445943,61536.0,61521.0,0.0002]
[1728045675223,0.65445943,61536.0,61521.0,0.0002]
[1728045675453,0.185543,61522.0,61521.0,0.0002]